[Event "Titled Tuesday Blitz May 25 2021"]
[White "Fayzullaev, Akmal"]
[Black "Samadov, Read"]
[WhiteFideId "14200554"]
[BlackFideId "13417444"]
[WhiteElo "2264"]
[BlackElo "2084"]
[Result "1-0"]
[Round "06"]
[TimeControl "180+1"]
[Date "2021.05.25"]
[WhiteClock "0:00:16"]
[BlackClock "0:00:07"]

1. d4 {[%clk 0:03:00]}  Nf6 {[%clk 0:02:59]} 2. Nf3 {[%clk 0:02:58]}  b6 {[%clk 0:02:58]} 3. Bg5 {[%clk 0:02:56]}  Ne4 {[%clk 0:02:56]} 4. Bf4 {[%clk 0:02:56]}  Bb7 {[%clk 0:02:56]} 5. Nbd2 {[%clk 0:02:56]}  e6 {[%clk 0:02:55]} 6. Nxe4 {[%clk 0:02:54]}  Bxe4 {[%clk 0:02:55]} 7. e3 {[%clk 0:02:54]}  Be7 {[%clk 0:02:55]} 8. Bd3 {[%clk 0:02:54]}  Bxd3 {[%clk 0:02:53]} 9. Qxd3 {[%clk 0:02:52]}  d5 {[%clk 0:02:53]} 10. e4 {[%clk 0:02:49]}  O-O {[%clk 0:02:51]} 11. O-O-O {[%clk 0:02:47]}  Nd7 {[%clk 0:02:28]} 12. exd5 {[%clk 0:02:42]}  exd5 {[%clk 0:02:28]} 13. Rhe1 {[%clk 0:02:34]}  c6 {[%clk 0:02:20]} 14. Bc7 {[%clk 0:02:29]}  Qxc7 {[%clk 0:02:16]} 15. Rxe7 {[%clk 0:02:28]}  Rae8 {[%clk 0:02:12]} 16. Rde1 {[%clk 0:02:21]}  Qd8 {[%clk 0:02:03]} 17. Qe3 {[%clk 0:02:04]}  Nf6 {[%clk 0:01:58]} 18. Qa3 {[%clk 0:01:43]}  Ne4 {[%clk 0:01:47]} 19. Rxe8 {[%clk 0:01:38]}  Rxe8 {[%clk 0:01:48]} 20. Ne5 {[%clk 0:01:38]}  Qg5+ {[%clk 0:01:42]} 21. Qe3 {[%clk 0:01:31]}  Qxg2 {[%clk 0:01:40]} 22. f3 {[%clk 0:01:10]}  Nd6 {[%clk 0:01:21]} 23. Rg1 {[%clk 0:00:55]}  Nf5 {[%clk 0:01:17]} 24. Rxg2 {[%clk 0:00:40]}  Nxe3 {[%clk 0:01:16]} 25. Rg1 {[%clk 0:00:38]}  Re6 {[%clk 0:01:12]} 26. c3 {[%clk 0:00:35]}  f6 {[%clk 0:01:12]} 27. Nd3 {[%clk 0:00:32]}  Nf5 {[%clk 0:01:08]} 28. Kd2 {[%clk 0:00:31]}  Kf7 {[%clk 0:01:06]} 29. a4 {[%clk 0:00:25]}  g5 {[%clk 0:00:56]} 30. a5 {[%clk 0:00:25]}  Re3 {[%clk 0:00:46]} 31. f4 {[%clk 0:00:23]}  h6 {[%clk 0:00:25]} 32. fxg5 {[%clk 0:00:22]}  hxg5 {[%clk 0:00:25]} 33. Rf1 {[%clk 0:00:22]}  Kg6 {[%clk 0:00:25]} 34. axb6 {[%clk 0:00:20]}  axb6 {[%clk 0:00:25]} 35. Nb4 {[%clk 0:00:19]}  Rh3 {[%clk 0:00:20]} 36. Rf2 {[%clk 0:00:18]}  Ne7 {[%clk 0:00:19]} 37. Re2 {[%clk 0:00:18]}  Kf7 {[%clk 0:00:19]} 38. Na6 {[%clk 0:00:18]}  g4 {[%clk 0:00:17]} 39. Nb8 {[%clk 0:00:18]}  f5 {[%clk 0:00:17]} 40. Nd7 {[%clk 0:00:17]}  f4 {[%clk 0:00:17]} 41. Ne5+ {[%clk 0:00:18]}  Kg7 {[%clk 0:00:15]} 42. Nxg4 {[%clk 0:00:18]}  Nf5 {[%clk 0:00:15]} 43. Rf2 {[%clk 0:00:16]}  f3 {[%clk 0:00:12]} 44. Ne5 {[%clk 0:00:16]}  c5 {[%clk 0:00:11]} 45. Nxf3 {[%clk 0:00:14]}  cxd4 {[%clk 0:00:11]} 46. Ng5 {[%clk 0:00:14]}  dxc3+ {[%clk 0:00:10]} 47. bxc3 {[%clk 0:00:15]}  Rh5 {[%clk 0:00:08]} 48. Rxf5 {[%clk 0:00:15]}  Rxh2+ {[%clk 0:00:06]} 49. Kd3 {[%clk 0:00:14]}  Rg2 {[%clk 0:00:03]} 50. Ne6+ {[%clk 0:00:13]}  Kg6 {[%clk 0:00:03]} 51. Nf4+ {[%clk 0:00:14]}  Kxf5 {[%clk 0:00:03]} 52. Nxg2 {[%clk 0:00:15]}  Ke5 {[%clk 0:00:03]} 53. Ne3 {[%clk 0:00:15]}  b5 {[%clk 0:00:04]} 54. Nc2 {[%clk 0:00:15]}  Kd6 {[%clk 0:00:04]} 55. Nd4 {[%clk 0:00:15]}  Kc5 {[%clk 0:00:04]} 56. Nb3+ {[%clk 0:00:15]}  Kc6 {[%clk 0:00:04]} 57. Kd4 {[%clk 0:00:15]}  Kd6 {[%clk 0:00:04]} 58. Nc1 {[%clk 0:00:15]}  Kc6 {[%clk 0:00:05]} 59. Nd3 {[%clk 0:00:16]}  Kb6 {[%clk 0:00:04]} 60. Nb4 {[%clk 0:00:16]}  Ka5 {[%clk 0:00:04]} 61. Kxd5 {[%clk 0:00:16]}  Ka4 {[%clk 0:00:05]} 62. Kd4 {[%clk 0:00:16]}  Kb3 {[%clk 0:00:06]} 63. Nd5 {[%clk 0:00:17]}  Ka4 {[%clk 0:00:06]} 64. Nc7 {[%clk 0:00:16]}  Ka5 {[%clk 0:00:06]} 65. Nxb5 {[%clk 0:00:15]}  Kxb5 {[%clk 0:00:07]} 66. Kd5 {[%clk 0:00:15]}  Kb6 {[%clk 0:00:07]} 67. c4 {[%clk 0:00:15]}  Kc7 {[%clk 0:00:07]} 68. Kc5 {[%clk 0:00:16]} 1-0


[Site "https://www.chess.com"]

[Event "Titled Tuesday Blitz May 25 2021"]
[White "Filali, Razzouki Marouane"]
[Black "Vaishali, Rameshbabu"]
[WhiteFideId "9003720"]
[BlackFideId "5091756"]
[WhiteElo "2073"]
[BlackElo "2313"]
[Result "0-1"]
[Round "06"]
[TimeControl "180+1"]
[Date "2021.05.25"]
[WhiteClock "0:00:17"]
[BlackClock "0:00:16"]

1. e4 {[%clk 0:03:00]}  c5 {[%clk 0:02:59]} 2. Nf3 {[%clk 0:03:01]}  Nf6 {[%clk 0:02:59]} 3. e5 {[%clk 0:02:48]}  Nd5 {[%clk 0:02:59]} 4. Nc3 {[%clk 0:02:49]}  e6 {[%clk 0:03:00]} 5. Ne4 {[%clk 0:02:44]}  f5 {[%clk 0:02:58]} 6. Nd6+ {[%clk 0:02:19]}  Bxd6 {[%clk 0:02:58]} 7. exd6 {[%clk 0:02:20]}  Qb6 {[%clk 0:02:55]} 8. d4 {[%clk 0:01:57]}  Qxd6 {[%clk 0:02:48]} 9. c4 {[%clk 0:01:53]}  Nf6 {[%clk 0:02:46]} 10. g3 {[%clk 0:01:50]}  cxd4 {[%clk 0:02:13]} 11. Bf4 {[%clk 0:01:48]}  Qb4+ {[%clk 0:02:11]} 12. Bd2 {[%clk 0:01:47]}  Qxb2 {[%clk 0:02:07]} 13. Bg2 {[%clk 0:01:48]}  Nc6 {[%clk 0:02:05]} 14. O-O {[%clk 0:01:47]}  O-O {[%clk 0:02:05]} 15. Bf4 {[%clk 0:01:45]}  Qa3 {[%clk 0:02:04]} 16. Nxd4 {[%clk 0:01:41]}  e5 {[%clk 0:01:58]} 17. Nb5 {[%clk 0:01:38]}  Qc5 {[%clk 0:01:51]} 18. Bc1 {[%clk 0:01:37]}  Qxc4 {[%clk 0:01:45]} 19. Nd6 {[%clk 0:01:32]}  Qe6 {[%clk 0:01:33]} 20. Ba3 {[%clk 0:01:23]}  e4 {[%clk 0:01:31]} 21. Re1 {[%clk 0:01:20]}  Rb8 {[%clk 0:01:11]} 22. Bf1 {[%clk 0:01:17]}  Ne5 {[%clk 0:00:59]} 23. f4 {[%clk 0:00:51]}  Nf3+ {[%clk 0:00:44]} 24. Kh1 {[%clk 0:00:50]}  Ng4 {[%clk 0:00:40]} 25. Bc4 {[%clk 0:00:32]}  Nf2+ {[%clk 0:00:32]} 26. Kg2 {[%clk 0:00:32]}  Nxd1 {[%clk 0:00:29]} 27. Bxe6+ {[%clk 0:00:30]}  dxe6 {[%clk 0:00:29]} 28. Rexd1 {[%clk 0:00:31]}  Bd7 {[%clk 0:00:22]} 29. Nxe4 {[%clk 0:00:25]}  fxe4 {[%clk 0:00:19]} 30. Rxd7 {[%clk 0:00:18]}  Rfc8 {[%clk 0:00:18]} 31. Kh3 {[%clk 0:00:08]}  Rc2 {[%clk 0:00:17]} 32. g4 {[%clk 0:00:03]}  Rbc8 {[%clk 0:00:12]} 33. Rad1 {[%clk 0:00:02]}  Rxa2 {[%clk 0:00:09]} 34. Kg3 {[%clk 0:00:03]}  Rxa3 {[%clk 0:00:08]} 35. f5 {[%clk 0:00:04]}  exf5 {[%clk 0:00:08]} 36. gxf5 {[%clk 0:00:05]}  Ne5+ {[%clk 0:00:08]} 37. Kf4 {[%clk 0:00:05]}  Nxd7 {[%clk 0:00:09]} 38. Rxd7 {[%clk 0:00:05]}  Rh3 {[%clk 0:00:09]} 39. f6 {[%clk 0:00:05]}  gxf6 {[%clk 0:00:08]} 40. Kf5 {[%clk 0:00:06]}  Rxh2 {[%clk 0:00:09]} 41. Kxf6 {[%clk 0:00:07]}  Rc6+ {[%clk 0:00:09]} 42. Kf5 {[%clk 0:00:07]}  Rh5+ {[%clk 0:00:09]} 43. Kg4 {[%clk 0:00:07]}  Re5 {[%clk 0:00:09]} 44. Kf4 {[%clk 0:00:08]}  Re8 {[%clk 0:00:10]} 45. Ke3 {[%clk 0:00:07]}  Rc3+ {[%clk 0:00:10]} 46. Kd2 {[%clk 0:00:08]}  Rd3+ {[%clk 0:00:10]} 47. Rxd3 {[%clk 0:00:08]}  exd3 {[%clk 0:00:11]} 48. Kxd3 {[%clk 0:00:09]}  b5 {[%clk 0:00:11]} 49. Kd2 {[%clk 0:00:10]}  h5 {[%clk 0:00:12]} 50. Kc3 {[%clk 0:00:11]}  h4 {[%clk 0:00:13]} 51. Kb4 {[%clk 0:00:12]}  h3 {[%clk 0:00:14]} 52. Kxb5 {[%clk 0:00:13]}  h2 {[%clk 0:00:15]} 53. Ka5 {[%clk 0:00:14]}  h1=Q {[%clk 0:00:16]} 54. Kb5 {[%clk 0:00:15]}  Qd5+ {[%clk 0:00:15]} 55. Kb4 {[%clk 0:00:15]}  Rb8+ {[%clk 0:00:15]} 56. Kc3 {[%clk 0:00:16]}  Rb3+ {[%clk 0:00:14]} 57. Kc2 {[%clk 0:00:16]}  Qd3+ {[%clk 0:00:15]} 58. Kc1 {[%clk 0:00:17]}  Rb1# {[%clk 0:00:16]} 0-1


[Site "https://www.chess.com"]

[Event "Titled Tuesday Blitz May 25 2021"]
[White "Garcia Garcia, Alejandro"]
[Black "Urazayev, Arystanbek"]
[WhiteFideId "3516334"]
[BlackFideId "13709810"]
[WhiteElo "2131"]
[BlackElo "2321"]
[Result "0-1"]
[Round "06"]
[TimeControl "180+1"]
[Date "2021.05.25"]
[WhiteClock "0:00:24"]
[BlackClock "0:01:24"]

1. Nf3 {[%clk 0:03:00]}  d5 {[%clk 0:02:43]} 2. g3 {[%clk 0:03:01]}  e6 {[%clk 0:02:44]} 3. Bg2 {[%clk 0:03:01]}  Nf6 {[%clk 0:02:44]} 4. O-O {[%clk 0:03:02]}  Be7 {[%clk 0:02:45]} 5. c4 {[%clk 0:03:02]}  O-O {[%clk 0:02:46]} 6. cxd5 {[%clk 0:03:03]}  b6 {[%clk 0:02:47]} 7. d3 {[%clk 0:03:04]}  exd5 {[%clk 0:02:47]} 8. Nc3 {[%clk 0:03:04]}  c5 {[%clk 0:02:48]} 9. e4 {[%clk 0:03:04]}  Bb7 {[%clk 0:02:48]} 10. Nh4 {[%clk 0:03:00]}  dxe4 {[%clk 0:02:46]} 11. dxe4 {[%clk 0:02:59]}  Nbd7 {[%clk 0:02:43]} 12. e5 {[%clk 0:02:51]}  Bxg2 {[%clk 0:02:34]} 13. exf6 {[%clk 0:02:50]}  Bxf1 {[%clk 0:02:35]} 14. fxe7 {[%clk 0:02:51]}  Qxe7 {[%clk 0:02:35]} 15. Qxf1 {[%clk 0:02:50]}  Ne5 {[%clk 0:02:35]} 16. Bf4 {[%clk 0:02:47]}  Nc6 {[%clk 0:02:33]} 17. Re1 {[%clk 0:02:46]}  Qf6 {[%clk 0:02:32]} 18. Nf3 {[%clk 0:02:44]}  h6 {[%clk 0:02:31]} 19. Nd5 {[%clk 0:02:20]}  Qxb2 {[%clk 0:02:30]} 20. Ne5 {[%clk 0:02:13]}  Nxe5 {[%clk 0:02:29]} 21. Bxe5 {[%clk 0:02:12]}  Qxa2 {[%clk 0:02:29]} 22. Ne7+ {[%clk 0:02:10]}  Kh7 {[%clk 0:02:29]} 23. Qd3+ {[%clk 0:02:08]}  g6 {[%clk 0:02:24]} 24. Qf3 {[%clk 0:01:48]}  f6 {[%clk 0:02:17]} 25. Ba1 {[%clk 0:01:14]}  Rae8 {[%clk 0:02:13]} 26. Qb7 {[%clk 0:00:57]}  Rf7 {[%clk 0:02:01]} 27. Kg2 {[%clk 0:00:54]}  Qd2 {[%clk 0:01:47]} 28. Re6 {[%clk 0:00:49]}  Qd8 {[%clk 0:01:46]} 29. Bxf6 {[%clk 0:00:48]}  Qa8 {[%clk 0:01:43]} 30. Qxa8 {[%clk 0:00:45]}  Rxa8 {[%clk 0:01:44]} 31. Nd5 {[%clk 0:00:43]}  Rd7 {[%clk 0:01:40]} 32. Ne3 {[%clk 0:00:35]}  b5 {[%clk 0:01:34]} 33. Be5 {[%clk 0:00:35]}  h5 {[%clk 0:01:32]} 34. Ra6 {[%clk 0:00:33]}  Re8 {[%clk 0:01:28]} 35. Bd6 {[%clk 0:00:32]}  Re6 {[%clk 0:01:26]} 36. Rxa7 {[%clk 0:00:20]}  Rxa7 {[%clk 0:01:25]} 37. Bxc5 {[%clk 0:00:21]}  Rb7 {[%clk 0:01:25]} 38. Nd5 {[%clk 0:00:21]}  Re5 {[%clk 0:01:20]} 39. Nf6+ {[%clk 0:00:21]}  Kg7 {[%clk 0:01:21]} 40. Bd4 {[%clk 0:00:21]}  Kxf6 {[%clk 0:01:21]} 41. f4 {[%clk 0:00:21]}  b4 {[%clk 0:01:22]} 42. Bxe5+ {[%clk 0:00:21]}  Kf5 {[%clk 0:01:23]} 43. Kf3 {[%clk 0:00:21]}  b3 {[%clk 0:01:23]} 44. h3 {[%clk 0:00:22]}  b2 {[%clk 0:01:23]} 45. g4+ {[%clk 0:00:23]}  hxg4+ {[%clk 0:01:23]} 46. hxg4+ {[%clk 0:00:24]}  Ke6 {[%clk 0:01:24]} 0-1


[Site "https://www.chess.com"]

[Event "Titled Tuesday Blitz May 25 2021"]
[White "Gelman, Alexander"]
[Black "Delgadillo, Adonay"]
[WhiteFideId "4118316"]
[BlackFideId "3301915"]
[WhiteElo "2375"]
[BlackElo "2103"]
[Result "1-0"]
[Round "06"]
[TimeControl "180+1"]
[Date "2021.05.25"]
[WhiteClock "0:00:08"]
[BlackClock "0:00:06"]

1. d4 {[%clk 0:03:00]}  Nf6 {[%clk 0:02:50]} 2. Nc3 {[%clk 0:03:01]}  d5 {[%clk 0:02:39]} 3. Bf4 {[%clk 0:03:00]}  g6 {[%clk 0:02:38]} 4. e3 {[%clk 0:03:00]}  Bg7 {[%clk 0:02:39]} 5. h4 {[%clk 0:03:01]}  c6 {[%clk 0:02:33]} 6. Nf3 {[%clk 0:02:53]}  Bg4 {[%clk 0:02:31]} 7. Qd2 {[%clk 0:02:51]}  Nbd7 {[%clk 0:02:23]} 8. Ne5 {[%clk 0:02:49]}  Nxe5 {[%clk 0:02:21]} 9. Bxe5 {[%clk 0:02:49]}  Ne4 {[%clk 0:01:23]} 10. Nxe4 {[%clk 0:02:49]}  Bxe5 {[%clk 0:01:24]} 11. Nc5 {[%clk 0:02:12]}  Bg7 {[%clk 0:01:23]} 12. f3 {[%clk 0:02:13]}  Bc8 {[%clk 0:01:22]} 13. h5 {[%clk 0:02:13]}  b6 {[%clk 0:01:22]} 14. Nd3 {[%clk 0:02:13]}  Bb7 {[%clk 0:01:22]} 15. O-O-O {[%clk 0:02:12]}  Qd7 {[%clk 0:01:22]} 16. Ne5 {[%clk 0:02:07]}  Bxe5 {[%clk 0:01:16]} 17. dxe5 {[%clk 0:02:07]}  O-O-O {[%clk 0:01:17]} 18. f4 {[%clk 0:02:00]}  Kb8 {[%clk 0:01:15]} 19. Kb1 {[%clk 0:02:00]}  f6 {[%clk 0:01:08]} 20. exf6 {[%clk 0:01:58]}  exf6 {[%clk 0:01:09]} 21. Bd3 {[%clk 0:01:57]}  Qg4 {[%clk 0:01:05]} 22. a4 {[%clk 0:01:46]}  c5 {[%clk 0:00:51]} 23. a5 {[%clk 0:01:40]}  c4 {[%clk 0:00:49]} 24. Be2 {[%clk 0:01:40]}  Qe6 {[%clk 0:00:42]} 25. Bf3 {[%clk 0:01:24]}  Rhe8 {[%clk 0:00:37]} 26. hxg6 {[%clk 0:01:24]}  hxg6 {[%clk 0:00:37]} 27. Rhe1 {[%clk 0:01:05]}  g5 {[%clk 0:00:34]} 28. g3 {[%clk 0:00:47]}  g4 {[%clk 0:00:29]} 29. Bh1 {[%clk 0:00:46]}  f5 {[%clk 0:00:24]} 30. Qc3 {[%clk 0:00:42]}  Rh8 {[%clk 0:00:22]} 31. axb6 {[%clk 0:00:38]}  axb6 {[%clk 0:00:21]} 32. Qd4 {[%clk 0:00:29]}  Rh3 {[%clk 0:00:20]} 33. Rg1 {[%clk 0:00:24]}  Kc7 {[%clk 0:00:18]} 34. Qg7+ {[%clk 0:00:23]}  Rd7 {[%clk 0:00:17]} 35. Qc3 {[%clk 0:00:22]}  b5 {[%clk 0:00:16]} 36. b4 {[%clk 0:00:19]}  Bc6 {[%clk 0:00:13]} 37. Kb2 {[%clk 0:00:19]}  Kb6 {[%clk 0:00:13]} 38. Ra1 {[%clk 0:00:19]}  Rb7 {[%clk 0:00:14]} 39. Qd4+ {[%clk 0:00:19]}  Kc7 {[%clk 0:00:15]} 40. Bg2 {[%clk 0:00:18]}  Rh2 {[%clk 0:00:14]} 41. Rh1 {[%clk 0:00:19]}  Qh6 {[%clk 0:00:13]} 42. Qe5+ {[%clk 0:00:17]}  Kd7 {[%clk 0:00:13]} 43. Ra8 {[%clk 0:00:15]}  Rxh1 {[%clk 0:00:09]} 44. Qe8+ {[%clk 0:00:13]}  Kd6 {[%clk 0:00:10]} 45. Qe5+ {[%clk 0:00:11]}  Kd7 {[%clk 0:00:09]} 46. Qe8+ {[%clk 0:00:10]}  Kd6 {[%clk 0:00:10]} 47. Rd8+ {[%clk 0:00:08]}  Bd7 {[%clk 0:00:05]} 48. Qe5+ {[%clk 0:00:08]}  Kc6 {[%clk 0:00:04]} 49. Qxd5+ {[%clk 0:00:08]}  Kc7 {[%clk 0:00:05]} 50. Rxd7+ {[%clk 0:00:08]}  Kc8 {[%clk 0:00:06]} 51. Qxb7# {[%clk 0:00:08]} 1-0


[Site "https://www.chess.com"]

[Event "Titled Tuesday Blitz May 25 2021"]
[White "Grochal, Joey"]
[Black "Sadovsky, Artem"]
[WhiteFideId "1019945"]
[BlackFideId "4155840"]
[WhiteElo "2265"]
[BlackElo "2476"]
[Result "0-1"]
[Round "06"]
[TimeControl "180+1"]
[Date "2021.05.25"]
[WhiteClock "0:00:50"]
[BlackClock "0:01:16"]

1. d4 {[%clk 0:03:00]}  g6 {[%clk 0:03:00]} 2. c4 {[%clk 0:03:01]}  Bg7 {[%clk 0:03:01]} 3. Nf3 {[%clk 0:03:01]}  d6 {[%clk 0:02:49]} 4. Nc3 {[%clk 0:03:00]}  e5 {[%clk 0:02:49]} 5. dxe5 {[%clk 0:02:52]}  dxe5 {[%clk 0:02:50]} 6. Qxd8+ {[%clk 0:02:52]}  Kxd8 {[%clk 0:02:51]} 7. Bg5+ {[%clk 0:02:52]}  f6 {[%clk 0:02:51]} 8. O-O-O {[%clk 0:02:52]}  Nd7 {[%clk 0:02:52]} 9. Be3 {[%clk 0:02:50]}  Bh6 {[%clk 0:02:52]} 10. Bxh6 {[%clk 0:02:46]}  Nxh6 {[%clk 0:02:53]} 11. e3 {[%clk 0:02:39]}  c6 {[%clk 0:02:52]} 12. Ne4 {[%clk 0:02:30]}  Ke7 {[%clk 0:02:44]} 13. Rd2 {[%clk 0:02:15]}  a5 {[%clk 0:02:31]} 14. Be2 {[%clk 0:02:11]}  f5 {[%clk 0:02:29]} 15. Nd6 {[%clk 0:02:10]}  e4 {[%clk 0:02:28]} 16. Nd4 {[%clk 0:02:01]}  Nc5 {[%clk 0:02:26]} 17. Nxc8+ {[%clk 0:01:56]}  Raxc8 {[%clk 0:02:21]} 18. h3 {[%clk 0:01:49]}  Nf7 {[%clk 0:02:07]} 19. Nb3 {[%clk 0:01:38]}  Nxb3+ {[%clk 0:02:02]} 20. axb3 {[%clk 0:01:38]}  c5 {[%clk 0:02:01]} 21. g4 {[%clk 0:01:36]}  Ne5 {[%clk 0:02:00]} 22. gxf5 {[%clk 0:01:36]}  gxf5 {[%clk 0:02:00]} 23. Rg1 {[%clk 0:01:36]}  Rhg8 {[%clk 0:01:58]} 24. Rxg8 {[%clk 0:01:35]}  Rxg8 {[%clk 0:01:59]} 25. Rd5 {[%clk 0:01:35]}  Nd7 {[%clk 0:01:40]} 26. Rxf5 {[%clk 0:01:32]}  Rf8 {[%clk 0:01:40]} 27. Bg4 {[%clk 0:01:27]}  Rxf5 {[%clk 0:01:39]} 28. Bxf5 {[%clk 0:01:27]}  Nf6 {[%clk 0:01:40]} 29. Kd2 {[%clk 0:01:19]}  Kd6 {[%clk 0:01:41]} 30. Ke2 {[%clk 0:01:19]}  Ke5 {[%clk 0:01:42]} 31. Bc8 {[%clk 0:01:20]}  b6 {[%clk 0:01:42]} 32. f4+ {[%clk 0:01:19]}  exf3+ {[%clk 0:01:42]} 33. Kxf3 {[%clk 0:01:19]}  Ne4 {[%clk 0:01:42]} 34. Kg4 {[%clk 0:01:08]}  Nd2 {[%clk 0:01:27]} 35. Bf5 {[%clk 0:01:00]}  h5+ {[%clk 0:01:15]} 36. Kg5 {[%clk 0:01:00]}  Nf3+ {[%clk 0:01:15]} 37. Kg6 {[%clk 0:00:50]}  Nh4+ {[%clk 0:01:15]} 38. Kxh5 {[%clk 0:00:49]}  Nxf5 {[%clk 0:01:16]} 39. Kg5 {[%clk 0:00:50]} 0-1


[Site "https://www.chess.com"]

[Event "Titled Tuesday Blitz May 25 2021"]
[White "Ingebretsen, Jens E"]
[Black "Maksimovic, Bojan"]
[WhiteFideId "1522965"]
[BlackFideId "14408120"]
[WhiteElo "2072"]
[BlackElo "2437"]
[Result "0-1"]
[Round "06"]
[TimeControl "180+1"]
[Date "2021.05.25"]
[WhiteClock "0:01:40"]
[BlackClock "0:01:12"]

1. c4 {[%clk 0:03:00]}  g6 {[%clk 0:02:34]} 2. Nc3 {[%clk 0:02:54]}  Bg7 {[%clk 0:02:35]} 3. Nf3 {[%clk 0:02:55]}  d6 {[%clk 0:02:35]} 4. d4 {[%clk 0:02:55]}  e5 {[%clk 0:02:35]} 5. dxe5 {[%clk 0:02:55]}  dxe5 {[%clk 0:02:36]} 6. Qxd8+ {[%clk 0:02:56]}  Kxd8 {[%clk 0:02:37]} 7. Bg5+ {[%clk 0:02:56]}  f6 {[%clk 0:02:38]} 8. Be3 {[%clk 0:02:56]}  Nd7 {[%clk 0:02:38]} 9. g3 {[%clk 0:02:55]}  c6 {[%clk 0:02:38]} 10. Bg2 {[%clk 0:02:55]}  Kc7 {[%clk 0:02:39]} 11. O-O {[%clk 0:02:56]}  Nh6 {[%clk 0:02:39]} 12. Rfd1 {[%clk 0:02:51]}  Nf7 {[%clk 0:02:35]} 13. Nd2 {[%clk 0:02:47]}  f5 {[%clk 0:02:32]} 14. Nb3 {[%clk 0:02:40]}  Re8 {[%clk 0:02:26]} 15. Nc5 {[%clk 0:02:39]}  Nxc5 {[%clk 0:02:24]} 16. Bxc5 {[%clk 0:02:39]}  Be6 {[%clk 0:02:24]} 17. b3 {[%clk 0:02:38]}  e4 {[%clk 0:02:24]} 18. Rac1 {[%clk 0:02:35]}  Red8 {[%clk 0:02:04]} 19. e3 {[%clk 0:02:29]}  Bxc3 {[%clk 0:01:48]} 20. Rxd8 {[%clk 0:02:26]}  Rxd8 {[%clk 0:01:49]} 21. Rxc3 {[%clk 0:02:26]}  Rd1+ {[%clk 0:01:50]} 22. Bf1 {[%clk 0:02:24]}  f4 {[%clk 0:01:50]} 23. Ba3 {[%clk 0:02:24]}  Bh3 {[%clk 0:01:44]} 24. Rc1 {[%clk 0:02:24]}  Rxc1 {[%clk 0:01:39]} 25. Bxc1 {[%clk 0:02:25]}  Bxf1 {[%clk 0:01:40]} 26. Kxf1 {[%clk 0:02:26]}  f3 {[%clk 0:01:40]} 27. Bb2 {[%clk 0:02:22]}  Ng5 {[%clk 0:01:38]} 28. h4 {[%clk 0:02:19]}  Nh3 {[%clk 0:01:35]} 29. Bd4 {[%clk 0:02:16]}  a6 {[%clk 0:01:24]} 30. a4 {[%clk 0:02:15]}  Kd7 {[%clk 0:01:23]} 31. b4 {[%clk 0:02:10]}  b5 {[%clk 0:01:20]} 32. cxb5 {[%clk 0:02:06]}  cxb5 {[%clk 0:01:20]} 33. axb5 {[%clk 0:02:03]}  axb5 {[%clk 0:01:21]} 34. Be5 {[%clk 0:01:54]}  Ke6 {[%clk 0:01:21]} 35. Bb8 {[%clk 0:01:54]}  Kf5 {[%clk 0:01:19]} 36. Bc7 {[%clk 0:01:54]}  Kg4 {[%clk 0:01:17]} 37. Bd8 {[%clk 0:01:54]}  h6 {[%clk 0:01:11]} 38. Be7 {[%clk 0:01:53]}  g5 {[%clk 0:01:11]} 39. hxg5 {[%clk 0:01:53]}  hxg5 {[%clk 0:01:12]} 40. Bd8 {[%clk 0:01:53]}  Kf5 {[%clk 0:01:12]} 41. Bc7 {[%clk 0:01:51]}  g4 {[%clk 0:01:13]} 42. Bd8 {[%clk 0:01:52]}  Ke6 {[%clk 0:01:13]} 43. Bh4 {[%clk 0:01:50]}  Kd5 {[%clk 0:01:13]} 44. Bd8 {[%clk 0:01:48]}  Kc4 {[%clk 0:01:13]} 45. Be7 {[%clk 0:01:49]}  Kc3 {[%clk 0:01:14]} 46. Bf6+ {[%clk 0:01:47]}  Kxb4 {[%clk 0:01:13]} 47. Be7+ {[%clk 0:01:46]}  Kc3 {[%clk 0:01:13]} 48. Bf6+ {[%clk 0:01:46]}  Kc4 {[%clk 0:01:14]} 49. Ke1 {[%clk 0:01:43]}  b4 {[%clk 0:01:14]} 50. Be5 {[%clk 0:01:42]}  Kd3 {[%clk 0:01:12]} 51. Bh8 {[%clk 0:01:40]}  b3 {[%clk 0:01:12]} 0-1


[Site "https://www.chess.com"]

[Event "Titled Tuesday Blitz May 25 2021"]
[White "Jaracz, Pawel"]
[Black "Von Buelow, Georg"]
[WhiteFideId "1102222"]
[BlackFideId "4620658"]
[WhiteElo "2495"]
[BlackElo "2228"]
[Result "1-0"]
[Round "06"]
[TimeControl "180+1"]
[Date "2021.05.25"]
[WhiteClock "0:01:26"]
[BlackClock "0:00:49"]

1. e4 {[%clk 0:03:00]}  c5 {[%clk 0:02:58]} 2. Nf3 {[%clk 0:03:00]}  d6 {[%clk 0:02:57]} 3. Bc4 {[%clk 0:02:59]}  Nf6 {[%clk 0:02:56]} 4. d3 {[%clk 0:02:59]}  Nc6 {[%clk 0:02:51]} 5. O-O {[%clk 0:02:58]}  g6 {[%clk 0:02:50]} 6. c3 {[%clk 0:02:58]}  Bg7 {[%clk 0:02:50]} 7. h3 {[%clk 0:02:58]}  O-O {[%clk 0:02:49]} 8. Bb3 {[%clk 0:02:58]}  e6 {[%clk 0:02:49]} 9. Qe2 {[%clk 0:02:57]}  b6 {[%clk 0:02:48]} 10. d4 {[%clk 0:02:57]}  cxd4 {[%clk 0:02:47]} 11. cxd4 {[%clk 0:02:57]}  Bb7 {[%clk 0:02:45]} 12. Nc3 {[%clk 0:02:56]}  Rc8 {[%clk 0:02:43]} 13. Bg5 {[%clk 0:02:54]}  h6 {[%clk 0:02:43]} 14. Bh4 {[%clk 0:02:54]}  a6 {[%clk 0:02:42]} 15. Rad1 {[%clk 0:02:53]}  Qc7 {[%clk 0:02:40]} 16. Bg3 {[%clk 0:02:53]}  Qe7 {[%clk 0:02:30]} 17. Rfe1 {[%clk 0:02:46]}  Rfd8 {[%clk 0:02:26]} 18. Bh4 {[%clk 0:02:33]}  g5 {[%clk 0:02:22]} 19. Bg3 {[%clk 0:02:32]}  b5 {[%clk 0:02:21]} 20. d5 {[%clk 0:02:24]}  exd5 {[%clk 0:02:15]} 21. Nxd5 {[%clk 0:02:20]}  Nxd5 {[%clk 0:02:13]} 22. Bxd5 {[%clk 0:02:21]}  Ne5 {[%clk 0:02:01]} 23. Bxb7 {[%clk 0:02:17]}  Qxb7 {[%clk 0:01:59]} 24. Nd4 {[%clk 0:02:17]}  d5 {[%clk 0:01:06]} 25. Nf5 {[%clk 0:01:53]}  dxe4 {[%clk 0:01:04]} 26. Nxg7 {[%clk 0:01:50]}  Nd3 {[%clk 0:00:58]} 27. Nf5 {[%clk 0:01:43]}  Nxe1 {[%clk 0:00:55]} 28. Rxe1 {[%clk 0:01:27]}  Rc6 {[%clk 0:00:49]} 29. Qxe4 {[%clk 0:01:26]} 1-0


[Site "https://www.chess.com"]